{"text_format":"3","workbook":"xlsx","n_sheets":4,"sheets":["התחלה","תקציב לחתונה","ביגוד-קבלת פנים-מוסיקה-תמונות","קישוטים-פרחים-מתנות-נסיעות"],"not_rendered":{"charts":1,"defined_names":22},"read":"whole","date_system":"1900"}

{"sheet":"התחלה","index":0,"n_rows":7,"n_cols":2,"rows_kept":7}
[null,"אודות תבנית זו"]
[null,"השתמש בתבנית זו כדי לעקוב אחר הוצאות החתונה שלך."]
[null,"הזן את העלויות המשוערות ואת העלויות בפועל עבור קטגוריות שונות בגליונות עבודה נפרדים."]
[null,"סיכום התקציב לחתונה והתרשים מתעדכנים עבורך באופן אוטומטי."]
[null,"הערה: "]
[null,"הוראות נוספות סופקו בעמודה A בכל גליון עבודה. טקסט זה הוסתר במכוון. כדי להסיר את הטקסט, בחר את עמודה A ולאחר מכן בחר DELETE. כדי לבטל את הסתרת הטקסט, בחר את עמודה A ולאחר מכן שנה את צבע הגופן."]
[null,"לקבלת מידע נוסף על הטבלאות, הקש SHIFT ולאחר מכן F10 בתוך טבלה, בחר את האפשרות 'טבלה' ולאחר מכן בחר 'טקסט חלופי'."]

{"sheet":"תקציב לחתונה","index":1,"n_rows":19,"n_cols":6,"rows_kept":19,"merged":[[2,2,4,5],[18,2,42,5]]}
["צור תקציב לחתונה בגליון עבודה זה. הזן פרטים בגליון העבודה 'ביגוד-קבלת פנים-מוסיקה-תמונות' ובגליון העבודה 'קישוטים-פרחים-מתנות-נסיעות' כדי לעדכן את הסיכום והתרשים בגליון העבודה הנוכחי. הוראות שימוש בגליון עבודה זה מופיעות בתאים שבעמודה זו. התווית 'תאריך החתונה' מופיעה בתא C1.",null,"תאריך החתונה:"]
["הזן את תאריך החתונה בתא C2. מספר הימים שנותרו מחושב באופן אוטומטי בתא E2.",null,{"$f":"TODAY()+365","v":"2019-12-05"},"ימים שנותרו:",{"$f":"C2-TODAY()","v":365}]
["הכותרת של גליון עבודה זה מופיעה בתא C3. ההוראה הבאה מופיעה בתא A6.",null,"סיכום תקציב לחתונה"]
[]
[]
["הטבלה 'סיכום תקציב' שמתחילה בתא C6 מתעדכנת באופן אוטומטי. ההוראה הבאה מופיעה בתא A19.",null,"קטגוריה","משוערות","בפועל","חורג מהתקציב/במסגרת התקציב"]
[null,null,"ביגוד",{"$f":"ביגוד_סהכ_משוערות","v":{"v":9490,"d":"9,490.00"}},{"$f":"ביגוד_סהכ_בפועל","v":{"v":9770,"d":"9,770.00"}},{"$f":"סיכום_תקציב[[#This Row],[משוערות]]-סיכום_תקציב[[#This Row],[בפועל]]","v":{"v":-280,"d":"-280.00"}}]
[null,null,"קבלת פנים",{"$f":"קבלת_פנים_סהכ_משוערות","v":{"v":1050,"d":"1,050.00"}},{"$f":"קבלת_פנים_סהכ_בפועל","v":{"v":928,"d":"928.00"}},{"$f":"סיכום_תקציב[[#This Row],[משוערות]]-סיכום_תקציב[[#This Row],[בפועל]]","v":{"v":122,"d":"122.00"}}]
[null,null,"מוסיקה",{"$f":"מוסיקה_בידור_סהכ_משוערות","v":{"v":600,"d":"600.00"}},{"$f":"מוסיקה_בידור_סהכ_בפועל","v":{"v":400,"d":"400.00"}},{"$f":"סיכום_תקציב[[#This Row],[משוערות]]-סיכום_תקציב[[#This Row],[בפועל]]","v":{"v":200,"d":"200.00"}}]
[null,null,"הדפסה",{"$f":"הדפסה__מוצרי_נייר_סהכ_משוערות","v":{"v":935,"d":"935.00"}},{"$f":"הדפסה__מוצרי_נייר_סהכ_בפועל","v":{"v":870,"d":"870.00"}},{"$f":"סיכום_תקציב[[#This Row],[משוערות]]-סיכום_תקציב[[#This Row],[בפועל]]","v":{"v":65,"d":"65.00"}}]
[null,null,"צילום",{"$f":"צילום_סהכ_משוערות","v":{"v":1625,"d":"1,625.00"}},{"$f":"צילום_סהכ_בפועל","v":{"v":1575,"d":"1,575.00"}},{"$f":"סיכום_תקציב[[#This Row],[משוערות]]-סיכום_תקציב[[#This Row],[בפועל]]","v":{"v":50,"d":"50.00"}}]
[null,null,"קישוטים",{"$f":"קישוטים_סהכ_משוערות","v":{"v":700,"d":"700.00"}},{"$f":"קישוטים_סהכ_בפועל","v":{"v":720,"d":"720.00"}},{"$f":"סיכום_תקציב[[#This Row],[משוערות]]-סיכום_תקציב[[#This Row],[בפועל]]","v":{"v":-20,"d":"-20.00"}}]
[null,null,"פרחים",{"$f":"פרחים_סהכ_משוערות","v":{"v":900,"d":"900.00"}},{"$f":"פרחים_סהכ_בפועל","v":{"v":850,"d":"850.00"}},{"$f":"סיכום_תקציב[[#This Row],[משוערות]]-סיכום_תקציב[[#This Row],[בפועל]]","v":{"v":50,"d":"50.00"}}]
[null,null,"מתנות",{"$f":"מתנות_סהכ_משוערות","v":{"v":1345,"d":"1,345.00"}},{"$f":"מתנות_סהכ_בפועל","v":{"v":1075,"d":"1,075.00"}},{"$f":"סיכום_תקציב[[#This Row],[משוערות]]-סיכום_תקציב[[#This Row],[בפועל]]","v":{"v":270,"d":"270.00"}}]
[null,null,"נסיעות",{"$f":"נסיעות_תחבורה_סהכ_משוערות","v":{"v":100,"d":"100.00"}},{"$f":"נסיעות_תחבורה_סהכ_בפועל","v":{"v":165,"d":"165.00"}},{"$f":"סיכום_תקציב[[#This Row],[משוערות]]-סיכום_תקציב[[#This Row],[בפועל]]","v":{"v":-65,"d":"-65.00"}}]
[null,null,"אחר",{"$f":"הוצאות_אחרות_סהכ_משוערות","v":{"v":885,"d":"885.00"}},{"$f":"הוצאות_אחרות_סהכ_בפועל","v":{"v":1021,"d":"1,021.00"}},{"$f":"סיכום_תקציב[[#This Row],[משוערות]]-סיכום_תקציב[[#This Row],[בפועל]]","v":{"v":-136,"d":"-136.00"}}]
[null,null,"סה\"כ הוצאות",{"$f":"SUBTOTAL(109,סיכום_תקציב[משוערות])","v":{"v":17630,"d":"17,630.00"}},{"$f":"SUBTOTAL(109,סיכום_תקציב[בפועל])","v":{"v":17374,"d":"17,374.00"}},{"$f":"SUBTOTAL(109,סיכום_תקציב[חורג מהתקציב/במסגרת התקציב])","v":{"v":256,"d":"256.00"}}]
[]
["תרשים העוגה בתא C19 מתעדכן באופן אוטומטי.",null,"תרשים עוגה שמציג את אחוז ההוצאות בכל קטגוריה מופיע בתא זה."]

{"sheet":"ביגוד-קבלת פנים-מוסיקה-תמונות","index":2,"n_rows":56,"n_cols":6,"rows_kept":56,"merged":[[16,1,16,4],[28,1,28,4],[29,1,29,4],[35,1,35,4],[48,1,48,4]]}
["הזן את העלויות המשוערות ואת העלויות בפועל עבור כל קטגוריה בטבלאות המתאימות בגליון עבודה זה. הסכומים עבור 'חורג מהתקציב או במסגרת התקציב' מחושבים באופן אוטומטי. התווית 'ביגוד' מופיעה בתא משמאל. הוראות שימוש בגליון עבודה זה מופיעות בתאים שבעמודה זו. הקש על החץ למטה כדי להתחיל.","ביגוד",{"$nulls":3}," "]
[" הזן פרטים בטבלה 'ביגוד' שמתחילה בתא משמאל. ההוראה הבאה מופיעה בתא A18.","קטגוריה","משוערות","בפועל","חורג מהתקציב/במסגרת התקציב"," "]
[null,"טבעות אירוסין",{"v":1500,"d":"1,500.00"},{"v":1500,"d":"1,500.00"},{"$f":"'ביגוד-קבלת פנים-מוסיקה-תמונות'!$C3-'ביגוד-קבלת פנים-מוסיקה-תמונות'!$D3","v":{"v":0,"d":"0.00"}}]
[null,"טבעת עבור הכלה",{"v":2000,"d":"2,000.00"},{"v":2300,"d":"2,300.00"},{"$f":"'ביגוד-קבלת פנים-מוסיקה-תמונות'!$C4-'ביגוד-קבלת פנים-מוסיקה-תמונות'!$D4","v":{"v":-300,"d":"-300.00 "}}]
[null,"שמלת כלה",{"v":3000,"d":"3,000.00"},{"v":2750,"d":"2,750.00"},{"$f":"'ביגוד-קבלת פנים-מוסיקה-תמונות'!$C5-'ביגוד-קבלת פנים-מוסיקה-תמונות'!$D5","v":{"v":250,"d":"250.00"}}]
[null,"הינומה עבור הכלה",{"v":500,"d":"500.00"},{"v":500,"d":"500.00"},{"$f":"'ביגוד-קבלת פנים-מוסיקה-תמונות'!$C6-'ביגוד-קבלת פנים-מוסיקה-תמונות'!$D6","v":{"v":0,"d":"0.00"}}]
[null,"נעליים עבור הכלה",{"v":350,"d":"350.00"},{"v":300,"d":"300.00"},{"$f":"'ביגוד-קבלת פנים-מוסיקה-תמונות'!$C7-'ביגוד-קבלת פנים-מוסיקה-תמונות'!$D7","v":{"v":50,"d":"50.00"}}]
[null,"תכשיטים עבור הכלה",{"v":400,"d":"400.00"},{"v":550,"d":"550.00"},{"$f":"'ביגוד-קבלת פנים-מוסיקה-תמונות'!$C8-'ביגוד-קבלת פנים-מוסיקה-תמונות'!$D8","v":{"v":-150,"d":"-150.00 "}}]
[null,"לבנים עבור הכלה",{"v":20,"d":"20.00"},{"v":20,"d":"20.00"},{"$f":"'ביגוד-קבלת פנים-מוסיקה-תמונות'!$C9-'ביגוד-קבלת פנים-מוסיקה-תמונות'!$D9","v":{"v":0,"d":"0.00"}}]
[null,"טבעת עבור החתן",{"v":300,"d":"300.00"},{"v":250,"d":"250.00"},{"$f":"'ביגוד-קבלת פנים-מוסיקה-תמונות'!$C10-'ביגוד-קבלת פנים-מוסיקה-תמונות'!$D10","v":{"v":50,"d":"50.00"}}]
[null,"חליפת חתן",{"v":300,"d":"300.00"},{"v":350,"d":"350.00"},{"$f":"'ביגוד-קבלת פנים-מוסיקה-תמונות'!$C11-'ביגוד-קבלת פנים-מוסיקה-תמונות'!$D11","v":{"v":-50,"d":"-50.00 "}}]
[null,"כיסוי ראש עבור החתן",{"v":500,"d":"500.00"},{"v":500,"d":"500.00"},{"$f":"'ביגוד-קבלת פנים-מוסיקה-תמונות'!$C12-'ביגוד-קבלת פנים-מוסיקה-תמונות'!$D12","v":{"v":0,"d":"0.00"}}]
[null,"נעליים עבור החתן",{"v":200,"d":"200.00"},{"v":175,"d":"175.00"},{"$f":"'ביגוד-קבלת פנים-מוסיקה-תמונות'!$C13-'ביגוד-קבלת פנים-מוסיקה-תמונות'!$D13","v":{"v":25,"d":"25.00"}}]
[null,"תכשיטים עבור החתן",{"v":400,"d":"400.00"},{"v":550,"d":"550.00"},{"$f":"'ביגוד-קבלת פנים-מוסיקה-תמונות'!$C14-'ביגוד-קבלת פנים-מוסיקה-תמונות'!$D14","v":{"v":-150,"d":"-150.00 "}}]
[null,"לבנים עבור החתן",{"v":20,"d":"20.00"},{"v":25,"d":"25.00"},{"$f":"'ביגוד-קבלת פנים-מוסיקה-תמונות'!$C15-'ביגוד-קבלת פנים-מוסיקה-תמונות'!$D15","v":{"v":-5,"d":"-5.00 "}}]
[null,"סה\"כ ביגוד",{"$f":"SUBTOTAL(109,ביגוד[משוערות])","v":{"v":9490,"d":"9,490.00"}},{"$f":"SUBTOTAL(109,ביגוד[בפועל])","v":{"v":9770,"d":"9,770.00"}},{"$f":"SUBTOTAL(109,ביגוד[חורג מהתקציב/במסגרת התקציב])","v":{"v":-280,"d":"-280.00 "}}]
[]
["התווית 'קבלת פנים' מופיעה בתא משמאל.","קבלת פנים*"]
["הזן את עלויות קבלת הפנים, למעט עלויות הבידור והקישוטים, בטבלה שמתחילה בתא משמאל. ההוראה הבאה מופיעה בתא A31.","קטגוריה","משוערות","בפועל","חורג מהתקציב/במסגרת התקציב"]
[null,"תשלומים לאולם האירועים",{"v":200,"d":"200.00"},{"v":150,"d":"150.00"},{"$f":"'ביגוד-קבלת פנים-מוסיקה-תמונות'!$C20-'ביגוד-קבלת פנים-מוסיקה-תמונות'!$D20","v":{"v":50,"d":"50.00"}}]
[null,"שולחנות וכיסאות",{"v":100,"d":"100.00"},{"v":50,"d":"50.00"},{"$f":"'ביגוד-קבלת פנים-מוסיקה-תמונות'!$C21-'ביגוד-קבלת פנים-מוסיקה-תמונות'!$D21","v":{"v":50,"d":"50.00"}}]
[null,"מזון",{"v":0,"d":"0.00"},{"v":0,"d":"0.00"},{"$f":"'ביגוד-קבלת פנים-מוסיקה-תמונות'!$C22-'ביגוד-קבלת פנים-מוסיקה-תמונות'!$D22","v":{"v":0,"d":"0.00"}}]
[null,"משקאות",{"v":0,"d":"0.00"},{"v":0,"d":"0.00"},{"$f":"'ביגוד-קבלת פנים-מוסיקה-תמונות'!$C23-'ביגוד-קבלת פנים-מוסיקה-תמונות'!$D23","v":{"v":0,"d":"0.00"}}]
[null,"מפות",{"v":0,"d":"0.00"},{"v":0,"d":"0.00"},{"$f":"'ביגוד-קבלת פנים-מוסיקה-תמונות'!$C24-'ביגוד-קבלת פנים-מוסיקה-תמונות'!$D24","v":{"v":0,"d":"0.00"}}]
[null,"עוגה",{"v":700,"d":"700.00"},{"v":700,"d":"700.00"},{"$f":"'ביגוד-קבלת פנים-מוסיקה-תמונות'!$C25-'ביגוד-קבלת פנים-מוסיקה-תמונות'!$D25","v":{"v":0,"d":"0.00"}}]
[null,"כיסוי לכיסאות",{"v":50,"d":"50.00"},{"v":28,"d":"28.00"},{"$f":"'ביגוד-קבלת פנים-מוסיקה-תמונות'!$C26-'ביגוד-קבלת פנים-מוסיקה-תמונות'!$D26","v":{"v":22,"d":"22.00"}}]
[null,"צוות ודמי שירות",{"v":0,"d":"0.00"},{"v":0,"d":"0.00"},{"$f":"'ביגוד-קבלת פנים-מוסיקה-תמונות'!$C27-'ביגוד-קבלת פנים-מוסיקה-תמונות'!$D27","v":{"v":0,"d":"0.00"}}]
[null,"סה\"כ קבלת פנים",{"$f":"SUBTOTAL(109,קבלת_פנים[משוערות])","v":{"v":1050,"d":"1,050.00"}},{"$f":"SUBTOTAL(109,קבלת_פנים[בפועל])","v":{"v":928,"d":"928.00"}},{"$f":"SUBTOTAL(109,קבלת_פנים[חורג מהתקציב/במסגרת התקציב])","v":{"v":122,"d":"122.00"}}]
[null,"* למעט בידור וקישוטים"]
[]
["התווית 'מוסיקה או בידור' מופיעה בתא משמאל.","מוסיקה/בידור"]
["הזן פרטים בטבלה 'מוסיקה' שמתחילה בתא משמאל. ההוראה הבאה מופיעה בתא A37.","קטגוריה","משוערות","בפועל","חורג מהתקציב/במסגרת התקציב"]
[null,"מוסיקאים לטקס",{"v":400,"d":"400.00"},{"v":400,"d":"400.00"},{"$f":"'ביגוד-קבלת פנים-מוסיקה-תמונות'!$C33-'ביגוד-קבלת פנים-מוסיקה-תמונות'!$D33","v":{"v":0,"d":"0.00"}}]
[null,"להקה/די ג'יי",{"v":200,"d":"200.00"},{"v":0,"d":"0.00"},{"$f":"'ביגוד-קבלת פנים-מוסיקה-תמונות'!$C34-'ביגוד-קבלת פנים-מוסיקה-תמונות'!$D34","v":{"v":200,"d":"200.00"}}]
[null,"סה\"כ מוסיקה/בידור",{"$f":"SUBTOTAL(109,מוסיקה[משוערות])","v":{"v":600,"d":"600.00"}},{"$f":"SUBTOTAL(109,מוסיקה[בפועל])","v":{"v":400,"d":"400.00"}},{"$f":"SUBTOTAL(109,מוסיקה[חורג מהתקציב/במסגרת התקציב])","v":{"v":200,"d":"200.00"}}]
[]
["התווית 'הדפסה או מוצרי נייר' מופיעה בתא משמאל.","הדפסה/מוצרי נייר"]
["הזן פרטים בטבלה 'הדפסה' שמתחילה בתא משמאל. ההוראה הבאה מופיעה בתא A50.","קטגוריה","משוערות","בפועל","חורג מהתקציב/במסגרת התקציב"]
[null,"הזמנות",{"v":500,"d":"500.00"},{"v":450,"d":"450.00"},{"$f":"'ביגוד-קבלת פנים-מוסיקה-תמונות'!$C39-'ביגוד-קבלת פנים-מוסיקה-תמונות'!$D39","v":{"v":50,"d":"50.00"}}]
[null,"הכרזות",{"v":200,"d":"200.00"},{"v":175,"d":"175.00"},{"$f":"'ביגוד-קבלת פנים-מוסיקה-תמונות'!$C40-'ביגוד-קבלת פנים-מוסיקה-תמונות'!$D40","v":{"v":25,"d":"25.00"}}]
[null,"כרטיסי תודה",{"v":100,"d":"100.00"},{"v":100,"d":"100.00"},{"$f":"'ביגוד-קבלת פנים-מוסיקה-תמונות'!$C41-'ביגוד-קבלת פנים-מוסיקה-תמונות'!$D41","v":{"v":0,"d":"0.00"}}]
[null,"נייר מכתבים אישי",{"v":0,"d":"0.00"},{"v":0,"d":"0.00"},{"$f":"'ביגוד-קבלת פנים-מוסיקה-תמונות'!$C42-'ביגוד-קבלת פנים-מוסיקה-תמונות'!$D42","v":{"v":0,"d":"0.00"}}]
[null,"ספר אורחים",{"v":25,"d":"25.00"},{"v":25,"d":"25.00"},{"$f":"'ביגוד-קבלת פנים-מוסיקה-תמונות'!$C43-'ביגוד-קבלת פנים-מוסיקה-תמונות'!$D43","v":{"v":0,"d":"0.00"}}]
[null,"תוכניות",{"v":75,"d":"75.00"},{"v":80,"d":"80.00"},{"$f":"'ביגוד-קבלת פנים-מוסיקה-תמונות'!$C44-'ביגוד-קבלת פנים-מוסיקה-תמונות'!$D44","v":{"v":-5,"d":"-5.00 "}}]
[null,"פתקים לקבלת הפנים",{"v":35,"d":"35.00"},{"v":40,"d":"40.00"},{"$f":"'ביגוד-קבלת פנים-מוסיקה-תמונות'!$C45-'ביגוד-קבלת פנים-מוסיקה-תמונות'!$D45","v":{"v":-5,"d":"-5.00 "}}]
[null,"קופסאות גפרורים",{"v":0,"d":"0.00"},{"v":0,"d":"0.00"},{"$f":"'ביגוד-קבלת פנים-מוסיקה-תמונות'!$C46-'ביגוד-קבלת פנים-מוסיקה-תמונות'!$D46","v":{"v":0,"d":"0.00"}}]
[null,"קליגרפיה",{"v":0,"d":"0.00"},{"v":0,"d":"0.00"},{"$f":"'ביגוד-קבלת פנים-מוסיקה-תמונות'!$C47-'ביגוד-קבלת פנים-מוסיקה-תמונות'!$D47","v":{"v":0,"d":"0.00"}}]
[null,"סה\"כ הדפסה/מוצרי נייר",{"$f":"SUBTOTAL(109,הדפסה[משוערות])","v":{"v":935,"d":"935.00"}},{"$f":"SUBTOTAL(109,הדפסה[בפועל])","v":{"v":870,"d":"870.00"}},{"$f":"SUBTOTAL(109,הדפסה[חורג מהתקציב/במסגרת התקציב])","v":{"v":65,"d":"65.00"}}]
[]
["התווית 'צילום' מופיעה בתא משמאל.","צילום"]
["הזן פרטים בטבלה 'צילום' שמתחילה בתא משמאל.","קטגוריה","משוערות","בפועל","חורג מהתקציב/במסגרת התקציב"]
[null,"צילומים רשמיים",{"v":1300,"d":"1,300.00"},{"v":1300,"d":"1,300.00"},{"$f":"'ביגוד-קבלת פנים-מוסיקה-תמונות'!$C52-'ביגוד-קבלת פנים-מוסיקה-תמונות'!$D52","v":{"v":0,"d":"0.00"}}]
[null,"הדפסים נוספים",{"v":25,"d":"25.00"},{"v":25,"d":"25.00"},{"$f":"'ביגוד-קבלת פנים-מוסיקה-תמונות'!$C53-'ביגוד-קבלת פנים-מוסיקה-תמונות'!$D53","v":{"v":0,"d":"0.00"}}]
[null,"אלבומי תמונות",{"v":100,"d":"100.00"},{"v":100,"d":"100.00"},{"$f":"'ביגוד-קבלת פנים-מוסיקה-תמונות'!$C54-'ביגוד-קבלת פנים-מוסיקה-תמונות'!$D54","v":{"v":0,"d":"0.00"}}]
[null,"צילום וידאו",{"v":200,"d":"200.00"},{"v":150,"d":"150.00"},{"$f":"'ביגוד-קבלת פנים-מוסיקה-תמונות'!$C55-'ביגוד-קבלת פנים-מוסיקה-תמונות'!$D55","v":{"v":50,"d":"50.00"}}]
[null,"סה\"כ צילום",{"$f":"SUBTOTAL(109,צילום[משוערות])","v":{"v":1625,"d":"1,625.00"}},{"$f":"SUBTOTAL(109,צילום[בפועל])","v":{"v":1575,"d":"1,575.00"}},{"$f":"SUBTOTAL(109,צילום[חורג מהתקציב/במסגרת התקציב])","v":{"v":50,"d":"50.00"}}]

{"sheet":"קישוטים-פרחים-מתנות-נסיעות","index":3,"n_rows":48,"n_cols":5,"rows_kept":48,"merged":[[8,1,8,4],[9,1,9,4],[18,1,18,4],[27,1,27,4],[34,1,34,4]]}
["הזן את העלויות המשוערות ואת העלויות בפועל עבור כל קטגוריה בטבלאות המתאימות בגליון עבודה זה. הסכומים עבור 'חורג מהתקציב או במסגרת התקציב' מחושבים באופן אוטומטי. התווית 'קישוטים' מופיעה בתא משמאל. הוראות שימוש בגליון עבודה זה מופיעות בתאים שבעמודה זו. הקש על החץ למטה כדי להתחיל.","קישוטים*"]
["הזן את עלויות הקישוטים, למעט עלויות הפרחים, בטבלה שמתחילה בתא משמאל. ההוראה הבאה מופיעה בתא A11.","קטגוריה","משוערות","בפועל","חורג מהתקציב/במסגרת התקציב"]
[null,"סרטים עבור הכיסאות",{"v":0,"d":"0.00"},{"v":0,"d":"0.00"},{"$f":"'קישוטים-פרחים-מתנות-נסיעות'!$C3-'קישוטים-פרחים-מתנות-נסיעות'!$D3","v":{"v":0,"d":"0.00"}}]
[null,"קישוטים מרכזיים",{"v":300,"d":"300.00"},{"v":320,"d":"320.00"},{"$f":"'קישוטים-פרחים-מתנות-נסיעות'!$C4-'קישוטים-פרחים-מתנות-נסיעות'!$D4","v":{"v":-20,"d":"-20.00 "}}]
[null,"נרות",{"v":100,"d":"100.00"},{"v":75,"d":"75.00"},{"$f":"'קישוטים-פרחים-מתנות-נסיעות'!$C5-'קישוטים-פרחים-מתנות-נסיעות'!$D5","v":{"v":25,"d":"25.00"}}]
[null,"תאורה",{"v":100,"d":"100.00"},{"v":75,"d":"75.00"},{"$f":"'קישוטים-פרחים-מתנות-נסיעות'!$C6-'קישוטים-פרחים-מתנות-נסיעות'!$D6","v":{"v":25,"d":"25.00"}}]
[null,"בלונים",{"v":200,"d":"200.00"},{"v":250,"d":"250.00"},{"$f":"'קישוטים-פרחים-מתנות-נסיעות'!$C7-'קישוטים-פרחים-מתנות-נסיעות'!$D7","v":{"v":-50,"d":"-50.00 "}}]
[null,"סה\"כ קישוטים",{"$f":"SUBTOTAL(109,קישוטים[משוערות])","v":{"v":700,"d":"700.00"}},{"$f":"SUBTOTAL(109,קישוטים[בפועל])","v":{"v":720,"d":"720.00"}},{"$f":"SUBTOTAL(109,קישוטים[חורג מהתקציב/במסגרת התקציב])","v":{"v":-20,"d":"-20.00 "}}]
[null,"* למעט פרחים"]
[]
["התווית 'פרחים' מופיעה בתא משמאל.","פרחים"]
["הזן פרטים בטבלה 'פרחים' שמתחילה בתא משמאל. ההוראה הבאה מופיעה בתא A20.","קטגוריה","משוערות","בפועל","חורג מהתקציב/במסגרת התקציב"]
[null,"זרים",{"v":500,"d":"500.00"},{"v":450,"d":"450.00"},{"$f":"'קישוטים-פרחים-מתנות-נסיעות'!$C13-'קישוטים-פרחים-מתנות-נסיעות'!$D13","v":{"v":50,"d":"50.00"}}]
[null,"פרחים לחליפה",{"v":0,"d":"0.00"},{"v":0,"d":"0.00"},{"$f":"'קישוטים-פרחים-מתנות-נסיעות'!$C14-'קישוטים-פרחים-מתנות-נסיעות'!$D14","v":{"v":0,"d":"0.00"}}]
[null,"צמידי פרחים",{"v":0,"d":"0.00"},{"v":0,"d":"0.00"},{"$f":"'קישוטים-פרחים-מתנות-נסיעות'!$C15-'קישוטים-פרחים-מתנות-נסיעות'!$D15","v":{"v":0,"d":"0.00"}}]
[null,"טקס",{"v":400,"d":"400.00"},{"v":400,"d":"400.00"},{"$f":"'קישוטים-פרחים-מתנות-נסיעות'!$C16-'קישוטים-פרחים-מתנות-נסיעות'!$D16","v":{"v":0,"d":"0.00"}}]
[null,"קבלת פנים",{"v":0,"d":"0.00"},{"v":0,"d":"0.00"},{"$f":"'קישוטים-פרחים-מתנות-נסיעות'!$C17-'קישוטים-פרחים-מתנות-נסיעות'!$D17","v":{"v":0,"d":"0.00"}}]
[null,"סה\"כ פרחים",{"$f":"SUBTOTAL(109,פרחים[משוערות])","v":{"v":900,"d":"900.00"}},{"$f":"SUBTOTAL(109,פרחים[בפועל])","v":{"v":850,"d":"850.00"}},{"$f":"SUBTOTAL(109,פרחים[חורג מהתקציב/במסגרת התקציב])","v":{"v":50,"d":"50.00"}}]
[]
["התווית 'מתנות' מופיעה בתא משמאל.","מתנות"]
["הזן פרטים בטבלה 'מתנות' שמתחילה בתא משמאל. ההוראה הבאה מופיעה בתא A29.","קטגוריה","משוערות","בפועל","חורג מהתקציב/במסגרת התקציב"]
[null,"משתתפים",{"v":1000,"d":"1,000.00"},{"v":400,"d":"400.00"},{"$f":"'קישוטים-פרחים-מתנות-נסיעות'!$C22-'קישוטים-פרחים-מתנות-נסיעות'!$D22","v":{"v":600,"d":"600.00"}}]
[null,"כלה",{"v":150,"d":"150.00"},{"v":200,"d":"200.00"},{"$f":"'קישוטים-פרחים-מתנות-נסיעות'!$C23-'קישוטים-פרחים-מתנות-נסיעות'!$D23","v":{"v":-50,"d":"-50.00 "}}]
[null,"חתן",{"v":150,"d":"150.00"},{"v":200,"d":"200.00"},{"$f":"'קישוטים-פרחים-מתנות-נסיעות'!$C24-'קישוטים-פרחים-מתנות-נסיעות'!$D24","v":{"v":-50,"d":"-50.00 "}}]
[null,"הורים",{"v":25,"d":"25.00"},{"v":25,"d":"25.00"},{"$f":"'קישוטים-פרחים-מתנות-נסיעות'!$C25-'קישוטים-פרחים-מתנות-נסיעות'!$D25","v":{"v":0,"d":"0.00"}}]
[null,"משתתפים אחרים",{"v":20,"d":"20.00"},{"v":250,"d":"250.00"},{"$f":"'קישוטים-פרחים-מתנות-נסיעות'!$C26-'קישוטים-פרחים-מתנות-נסיעות'!$D26","v":{"v":-230,"d":"-230.00 "}}]
[null,"סה\"כ מתנות",{"$f":"SUBTOTAL(109,מתנות[משוערות])","v":{"v":1345,"d":"1,345.00"}},{"$f":"SUBTOTAL(109,מתנות[בפועל])","v":{"v":1075,"d":"1,075.00"}},{"$f":"SUBTOTAL(109,מתנות[חורג מהתקציב/במסגרת התקציב])","v":{"v":270,"d":"270.00"}}]
[]
["התווית 'נסיעות או תחבורה' מופיעה בתא משמאל.","נסיעות/תחבורה"]
["הזן פרטים בטבלה 'נסיעות' שמתחילה בתא משמאל. ההוראה הבאה מופיעה בתא A36.","קטגוריה","משוערות","בפועל","חורג מהתקציב/במסגרת התקציב"]
[null,"לימוזינות",{"v":100,"d":"100.00"},{"v":125,"d":"125.00"},{"$f":"'קישוטים-פרחים-מתנות-נסיעות'!$C31-'קישוטים-פרחים-מתנות-נסיעות'!$D31","v":{"v":-25,"d":"-25.00 "}}]
[null,"חניה",{"v":0,"d":"0.00"},{"v":40,"d":"40.00"},{"$f":"'קישוטים-פרחים-מתנות-נסיעות'!$C32-'קישוטים-פרחים-מתנות-נסיעות'!$D32","v":{"v":-40,"d":"-40.00 "}}]
[null,"מוניות",{"v":0,"d":"0.00"},{"v":0,"d":"0.00"},{"$f":"'קישוטים-פרחים-מתנות-נסיעות'!$C33-'קישוטים-פרחים-מתנות-נסיעות'!$D33","v":{"v":0,"d":"0.00"}}]
[null,"סה\"כ נסיעות/תחבורה",{"$f":"SUBTOTAL(109,נסיעות[משוערות])","v":{"v":100,"d":"100.00"}},{"$f":"SUBTOTAL(109,נסיעות[בפועל])","v":{"v":165,"d":"165.00"}},{"$f":"SUBTOTAL(109,נסיעות[חורג מהתקציב/במסגרת התקציב])","v":{"v":-65,"d":"-65.00 "}}]
[]
["התווית 'הוצאות אחרות' מופיעה בתא משמאל.","הוצאות אחרות"]
["הזן פרטים בטבלה 'הוצאות אחרות' שמתחילה בתא משמאל.","קטגוריה","משוערות","בפועל","חורג מהתקציב/במסגרת התקציב"]
[null,"רב",{"v":0,"d":"0.00"},{"v":0,"d":"0.00"},{"$f":"'קישוטים-פרחים-מתנות-נסיעות'!$C38-'קישוטים-פרחים-מתנות-נסיעות'!$D38","v":{"v":0,"d":"0.00"}}]
[null,"תשלום לרבנות",{"v":40,"d":"40.00"},{"v":55,"d":"55.00"},{"$f":"'קישוטים-פרחים-מתנות-נסיעות'!$C39-'קישוטים-פרחים-מתנות-נסיעות'!$D39","v":{"v":-15,"d":"-15.00 "}}]
[null,"מארגן חתונה",{"v":0,"d":"0.00"},{"v":0,"d":"0.00"},{"$f":"'קישוטים-פרחים-מתנות-נסיעות'!$C40-'קישוטים-פרחים-מתנות-נסיעות'!$D40","v":{"v":0,"d":"0.00"}}]
[null,"ארוחת ערב לפני החתונה",{"v":450,"d":"450.00"},{"v":450,"d":"450.00"},{"$f":"'קישוטים-פרחים-מתנות-נסיעות'!$C41-'קישוטים-פרחים-מתנות-נסיעות'!$D41","v":{"v":0,"d":"0.00"}}]
[null,"מסיבת רווקים",{"v":20,"d":"20.00"},{"v":50,"d":"50.00"},{"$f":"'קישוטים-פרחים-מתנות-נסיעות'!$C42-'קישוטים-פרחים-מתנות-נסיעות'!$D42","v":{"v":-30,"d":"-30.00 "}}]
[null,"מסיבת רווקות",{"v":30,"d":"30.00"},{"v":20,"d":"20.00"},{"$f":"'קישוטים-פרחים-מתנות-נסיעות'!$C43-'קישוטים-פרחים-מתנות-נסיעות'!$D43","v":{"v":10,"d":"10.00"}}]
[null,"טיפולי יופי",{"v":45,"d":"45.00"},{"v":46,"d":"46.00"},{"$f":"'קישוטים-פרחים-מתנות-נסיעות'!$C44-'קישוטים-פרחים-מתנות-נסיעות'!$D44","v":{"v":-1,"d":"-1.00 "}}]
[null,"מסיבת אירוסין",{"v":0,"d":"0.00"},{"v":0,"d":"0.00"},{"$f":"'קישוטים-פרחים-מתנות-נסיעות'!$C45-'קישוטים-פרחים-מתנות-נסיעות'!$D45","v":{"v":0,"d":"0.00"}}]
[null,"ארוחת בוקר מאוחרת",{"v":300,"d":"300.00"},{"v":400,"d":"400.00"},{"$f":"'קישוטים-פרחים-מתנות-נסיעות'!$C46-'קישוטים-פרחים-מתנות-נסיעות'!$D46","v":{"v":-100,"d":"-100.00 "}}]
[null,"חדרים במלון",{"v":0,"d":"0.00"},{"v":0,"d":"0.00"},{"$f":"'קישוטים-פרחים-מתנות-נסיעות'!$C47-'קישוטים-פרחים-מתנות-נסיעות'!$D47","v":{"v":0,"d":"0.00"}}]
[null,"סה\"כ הוצאות אחרות",{"$f":"SUBTOTAL(109,הוצאות_אחרות[משוערות])","v":{"v":885,"d":"885.00"}},{"$f":"SUBTOTAL(109,הוצאות_אחרות[בפועל])","v":{"v":1021,"d":"1,021.00"}},{"$f":"SUBTOTAL(109,הוצאות_אחרות[חורג מהתקציב/במסגרת התקציב])","v":{"v":-136,"d":"-136.00 "}}]